bitfinex-derivatives/quotes_ETHF0:USTF0_20250504
["timestamp","ask_amount","ask_price","bid_price","bid_amount"]
[1746323966407,4.5532,1838.4,1838.3,2.80579]
[1746323966608,5.64093,1838.4,1838.3,1.718]
[1746323966811,5.64093,1838.4,1838.2,15.2009544]
[1746323967114,5.64093,1838.4,1838.2,16.9189544]
[1746323967315,5.64093,1838.4,1838.2,9.66061]
[1746323967915,1.08779,1838.3,1838.2,9.66061]
[1746323968109,4.77579,1838.3,1838.2,9.66061]
[1746323968310,1.08791,1838.1,1838.0,10.9063444]
[1746323968516,1.08791,1838.1,1838.0,11.9943144]
[1746323968718,1.08791,1838.1,1838.0,12.5062444]
[1746323968912,1.6904,1838.1,1838.0,13.5942144]
[1746323969116,6.46631,1838.1,1838.0,13.5942144]
[1746323969315,5.3784,1838.1,1838.0,13.5942144]
[1746323970419,6.46631,1838.1,1838.0,12.5062444]
[1746323970815,6.46631,1838.1,1838.0,5.2479]
[1746323971220,5.3784,1838.1,1838.0,6.33587]
[1746323972815,5.3784,1838.1,1837.9,1.08799]
[1746323973022,5.3784,1838.1,1837.9,1.6477]
[1746323973221,5.3784,1838.1,1838.0,1.08797]
[1746323974720,8.17243,1838.1,1837.9,2.73571]
[1746323974922,1.7061,1838.0,1837.9,2.73571]
[1746323975219,5.3941,1838.0,1837.9,2.73571]
[1746323975421,5.3941,1838.0,1837.9,1.08801]
[1746323975817,5.3941,1838.0,1837.9,2.82961]
[1746323976324,3.688,1838.0,1837.9,2.82961]
[1746323977217,5.3941,1838.0,1837.9,2.82961]
[1746323981523,5.3941,1838.0,1837.9,1.7416]
[1746323981929,6.48207,1838.0,1837.9,1.7416]
[1746323982321,5.3941,1838.0,1837.9,1.7416]
[1746323982629,5.3941,1838.0,1837.9,2.82963]
[1746323982923,5.3941,1838.0,1837.8,1.08807]
[1746323983115,1.6635,1837.9,1837.8,1.08807]
[1746323983712,1.6635,1837.9,1837.8,1.90437]
[1746323983914,3.688,1838.0,1837.9,1.08803]
[1746323984116,3.688,1838.0,1837.9,2.67313]
[1746323984322,5.3213,1838.0,1837.9,2.67313]
[1746323986623,6.40927,1838.0,1837.9,1.08803]
[1746323986831,6.40927,1838.0,1837.8,1.08805]
[1746323987029,1.6418,1837.9,1837.8,1.08805]
[1746323988126,5.3298,1837.9,1837.8,1.08805]
[1746323988734,3.688,1837.9,1837.8,1.08805]
[1746323994835,3.688,1837.9,1837.7,1.5725]
[1746323995135,4.77603,1837.9,1837.7,2.66061]
[1746323995336,0.7944,1837.8,1837.7,2.66061]
[1746323996137,4.4824,1837.8,1837.7,2.66061]
[1746323997940,3.688,1837.8,1837.7,2.66061]
[1746323998141,1.6447,1838.1,1838.0,1.08797]
[1746323998341,3.2494,1838.1,1838.0,1.08797]
[1746323998942,4.33731,1838.1,1837.9,2.771]
[1746323999241,6.9374,1838.1,1837.9,2.771]
[1746323999543,6.9374,1838.1,1838.0,1.08797]
[1746324000245,6.9374,1838.1,1838.0,2.67557]
[1746324001444,6.9374,1838.1,1838.0,1.08797]
[1746324002144,6.9374,1838.1,1838.0,2.79907]
[1746324002547,5.3327,1838.1,1838.0,2.79907]
[1746324002740,3.688,1838.1,1838.0,2.79907]
[1746324009250,7.0563,1838.3,1838.2,1.08785]
[1746324009853,7.0563,1838.3,1838.2,3.58625]
[1746324010349,3.688,1838.3,1838.2,3.58625]
[1746324010951,3.688,1838.3,1838.2,7.23025]
[1746324012150,6.82584258,1838.6,1838.5,1.08768]
[1746324012753,6.82584258,1838.6,1838.5,3.47288]
[1746324013050,10.51384258,1838.6,1838.5,3.47288]
[1746324015256,3.688,1838.6,1838.5,3.47288]
[1746324016054,5.295,1838.6,1838.5,3.47288]
[1746324025275,5.295,1838.6,1838.5,7.11088]
[1746324025471,3.688,1838.6,1838.5,7.11088]
[1746324026175,3.9929,1838.7,1838.6,1.08762]
[1746324026471,5.6915,1838.7,1838.6,1.08762]
[1746324026774,5.6915,1838.7,1838.5,5.2188]
[1746324027073,1.6986,1838.6,1838.5,6.30642]
[1746324028173,5.3866,1838.6,1838.5,6.30642]
[1746324029973,3.688,1838.6,1838.5,6.30642]
[1746324032476,5.333,1838.6,1838.5,6.30642]
[1746324044984,3.688,1838.6,1838.5,6.30642]
[1746324047781,3.688,1838.6,1838.3,6.77357]
[1746324047782,3.688,1838.6,1838.3,0.8463]
[1746324047984,4.29553,1838.4,1838.3,3.638]
[1746324048185,7.98353,1838.4,1838.3,3.638]
[1746324048389,8.79543,1838.4,1838.3,4.72579]
[1746324048686,9.3904,1838.4,1838.3,4.72579]
[1746324053084,3.688,1838.4,1838.3,4.72579]
[1746324053283,3.688,1838.4,1838.3,13.76349]
[1746324056189,3.61804258,1838.5,1838.4,1.08773]
[1746324056390,3.61804258,1838.5,1838.4,3.64033]
[1746324057090,7.30604258,1838.5,1838.4,3.64033]
[1746324058992,3.688,1838.5,1838.4,3.64033]
[1746324060894,3.688,1838.5,1838.4,1.08773]
[1746324061088,4.7757,1838.5,1838.3,8.3461044]
[1746324061290,2.5235,1838.4,1838.3,8.3461044]
[1746324062099,6.2115,1838.4,1838.3,8.3461044]
[1746324062489,6.2115,1838.4,1838.3,1.08776]
[1746324064698,11.2115,1838.4,1838.3,1.08779]
[1746324064897,14.4193,1838.4,1838.3,1.08779]
[1746324065100,9.4193,1838.4,1838.3,1.08779]
[1746324069596,10.50706,1838.4,1838.3,1.08779]
[1746324069797,10.50706,1838.4,1838.1,5.2046]
[1746324070100,7.7026,1838.4,1838.3,1.08779]
[1746324070904,8.79033,1838.4,1838.3,1.08779]
[1746324071394,1.08785,1838.2,1838.1,4.7189]
[1746324072103,4.29565,1838.2,1838.1,3.631]
[1746324072299,7.98365,1838.2,1838.1,4.71891]
[1746324072602,7.98365,1838.2,1838.1,3.631]
[1746324074901,1.08791,1838.1,1837.9,1.088]
[1746324075098,0.833,1838.1,1837.9,1.088]
[1746324075491,1.92093,1838.1,1837.9,1.088]
[1746324076208,5.60893,1838.1,1837.9,1.088]
[1746324077104,1.08797,1838.0,1837.9,1.088]
[1746324077309,5.60895,1838.1,1837.9,1.088]
[1746324077604,5.60895,1838.1,1838.0,1.08797]
[1746324078204,5.60895,1838.1,1837.8,5.3277]
[1746324078605,5.60895,1838.1,1837.9,1.08798]
[1746324078807,3.2078,1838.0,1837.5,10.4661444]
[1746324079009,3.2078,1838.0,1837.8,1.08808]
[1746324079207,7.98381,1838.0,1837.8,1.08808]
[1746324080306,7.98381,1838.0,1837.9,1.08803]
[1746324080509,6.8958,1838.0,1837.9,1.08803]
[1746324080811,3.688,1838.0,1837.9,1.08803]
[1746324081511,3.688,1838.0,1837.9,10.98543]
[1746324082309,3.61804258,1838.3,1838.2,1.08785]
[1746324083006,3.61804258,1838.3,1838.2,3.60015]
[1746324083207,3.61804258,1838.3,1838.2,8.60015]
[1746324083800,3.62613565,1838.7,1838.5,2.71919]
[1746324084003,3.62613565,1838.7,1838.6,7.20072]
[1746324085514,3.62613565,1838.7,1838.6,7.99312]
[1746324086113,7.31413565,1838.7,1838.6,7.99312]
[1746324087314,3.688,1838.7,1838.6,7.99312]
[1746324089114,4.77556,1838.7,1838.6,5.3216]
[1746324089309,9.77556,1838.7,1838.4,2.8067]
[1746324089508,6.78252,1838.6,1838.4,5.344]
[1746324089710,1.6713,1838.5,1838.4,5.344]
[1746324090003,1.6713,1838.5,1838.4,3.625]
[1746324090212,5.3593,1838.5,1838.4,3.625]
[1746324090814,10.3593,1838.5,1838.3,2.71769]
[1746324091016,2.4371,1838.4,1838.3,2.71769]
[1746324091211,6.1251,1838.4,1838.3,2.71769]
[1746324091517,6.1251,1838.4,1838.2,11.9711644]
[1746324091711,1.6345,1838.3,1838.2,13.6010644]
[1746324092109,5.3225,1838.3,1838.2,13.6010644]
[1746324093212,5.3225,1838.3,1838.2,7.2583444]
[1746324093420,13.5303,1838.3,1838.2,7.2583444]
[1746324093612,8.5303,1838.3,1838.2,7.2583444]
[1746324093814,9.61809,1838.3,1838.2,7.2583444]
[1746324094518,9.61809,1838.3,1838.1,4.71288]
[1746324094816,2.4846,1838.2,1838.1,1.08788]
[1746324095218,6.1726,1838.2,1838.1,1.08788]
[1746324098919,3.688,1838.2,1838.1,1.08788]
[1746324099111,3.688,1838.2,1838.1,1.94538]
[1746324099419,3.688,1838.2,1838.1,6.94538]
[1746324099720,3.688,1838.2,1838.1,8.65328]
[1746324100018,1.43416,1838.2,1838.1,8.65328]
[1746324100216,5.40355901,1838.7,1838.5,1.08762]
[1746324100518,7.13365901,1838.7,1838.5,4.71262]
[1746324100916,1.7301,1838.7,1838.5,4.71262]
[1746324101118,5.4181,1838.7,1838.5,4.71262]
[1746324102221,6.50566,1838.7,1838.5,4.71262]
[1746324102421,5.4181,1838.7,1838.5,4.71262]
[1746324102720,5.4181,1838.7,1838.6,1.08762]
[1746324103024,5.4181,1838.7,1838.6,2.80232]
[1746324105018,5.4181,1838.7,1838.6,1.7147]
[1746324105924,5.4181,1838.7,1838.6,2.80232]
[1746324109826,5.4181,1838.7,1838.5,3.625]
[1746324110027,4.32662,1838.6,1838.5,3.625]
[1746324110226,8.01462,1838.6,1838.4,1.08769]
[1746324110524,1.5938,1838.5,1838.4,1.08769]
[1746324111121,5.2818,1838.5,1838.4,1.08769]
[1746324113921,3.688,1838.5,1838.4,1.08769]
[1746324115121,3.688,1838.5,1838.4,9.29549]
[1746324115325,3.2078,1838.9,1838.8,1.0875]
[1746324116119,6.8958,1838.9,1838.8,1.0875]
[1746324116729,3.688,1838.9,1838.8,1.0875]
[1746324117621,3.688,1838.9,1838.7,2.82731]
[1746324117922,3.688,1838.9,1838.7,1.7398]
[1746324118131,3.688,1838.9,1838.8,1.0875]
[1746324118428,5.3676,1838.9,1838.8,1.0875]
[1746324119929,5.3676,1838.9,1838.7,2.82733]
[1746324120426,6.45504,1838.9,1838.7,2.82733]
[1746324120621,5.3676,1838.9,1838.7,1.7398]
[1746324120829,1.0875,1838.8,1838.7,1.7398]
[1746324121030,1.733,1838.8,1838.5,0.8441]
[1746324121230,2.7329,1838.7,1838.5,6.34547]
[1746324121432,1.733,1838.6,1838.5,6.34547]
[1746324122136,5.421,1838.6,1838.5,6.34547]
[1746324122833,3.688,1838.6,1838.5,6.34547]
[1746324123231,6.8958,1838.9,1838.8,1.0875]
[1746324123537,9.4574,1838.9,1838.8,1.0875]
[1746324124537,6.8958,1838.9,1838.8,1.0875]
[1746324124933,3.688,1838.9,1838.8,9.7065]
[1746324125235,6.20555901,1839.3,1839.2,1.08726]
[1746324125438,5.40355901,1839.3,1839.2,4.70626]
[1746324126025,5.40355901,1839.3,1839.2,6.38656]
[1746324128639,5.40355901,1839.3,1839.2,9.59436]
[1746324128843,4.8439,1839.7,1839.5,1.08706]
[1746324129040,1.6361,1839.6,1839.5,1.08706]
[1746324129544,1.08711,1839.5,1839.3,1.6369]
[1746324129743,5.6495,1839.4,1839.2,4.70623]
[1746324129935,5.6495,1839.4,1839.3,3.618]
[1746324129936,6.4403,1839.4,1839.3,3.618]
[1746324130241,10.1283,1839.4,1839.3,3.618]
[1746324130443,6.9205,1839.4,1839.3,4.7052]
[1746324131545,3.688,1839.4,1839.3,4.7052]
[1746324131842,3.688,1839.4,1839.3,5.5641]
[1746324132937,3.688,1839.4,1839.3,7.1575]
[1746324133132,4.29484,1839.6,1839.3,6.2986]
[1746324133337,3.27,1839.5,1839.3,6.2986]
[1746324133543,4.894,1839.4,1839.3,6.2986]
[1746324133848,9.894,1839.4,1839.1,3.618]
[1746324134048,4.2951,1839.2,1839.1,3.618]
[1746324134349,1.08732,1839.1,1838.9,1.5934]
[1746324134545,1.6862,1839.0,1838.9,4.70544]
[1746324135240,5.3742,1839.0,1838.9,3.618]
[1746324135441,5.3742,1839.0,1838.9,4.70544]
[1746324136242,3.688,1839.0,1838.9,4.70544]
[1746324136644,3.688,1839.0,1838.9,12.91324]
[1746324137049,3.688,1839.0,1838.9,7.91324]
[1746324137253,4.8363,1839.5,1839.4,1.08714]
[1746324138052,1.6645,1839.6,1839.5,1.08708]
[1746324138352,1.6645,1839.6,1839.4,1.08711]
[1746324138548,1.6285,1839.5,1839.4,1.08711]
[1746324139241,5.3165,1839.5,1839.4,1.08711]
[1746324140355,5.3165,1839.5,1839.3,1.668]
[1746324140543,1.7076,1839.4,1839.3,1.0872]
[1746324140752,1.7076,1839.4,1839.2,4.70521]
[1746324141146,6.48274,1839.4,1839.2,4.70521]
[1746324141453,5.3956,1839.4,1839.2,4.70521]
[1746324141653,1.7076,1839.3,1839.2,4.70521]
[1746324141844,1.7076,1839.3,1839.2,3.618]
[1746324142047,1.7076,1839.3,1839.2,4.70526]
[1746324142248,6.4828,1839.3,1839.2,3.618]
[1746324142447,5.3956,1839.3,1839.2,4.70526]
[1746324142650,5.3956,1839.3,1839.1,1.08729]
[1746324142859,6.45,1839.2,1839.1,1.08732]
[1746324143251,11.22529,1839.2,1839.0,1.08733]
[1746324143447,1.6597,1839.1,1839.0,1.08733]
[1746324144253,5.3477,1839.1,1839.0,1.08733]
[1746324146058,6.43504,1839.1,1838.9,6.38951]
[1746324146263,1.6713,1839.0,1838.9,6.38951]
[1746324147159,3.2078,1839.4,1838.9,13.02066]
[1746324147360,3.2078,1839.4,1839.3,1.0872]
[1746324147759,3.2078,1839.4,1839.3,2.8068]
[1746324148161,6.8958,1839.4,1839.3,2.8068]
[1746324148355,3.688,1839.4,1839.3,2.8068]
[1746324151156,3.688,1839.4,1839.3,7.8068]
[1746324151357,3.688,1839.4,1839.3,11.0146]
[1746324152363,4.9013,1839.8,1839.7,1.08697]
[1746324152855,3.2078,1839.8,1839.7,1.08697]
[1746324153056,3.2078,1839.8,1839.7,2.72797]
[1746324153249,6.8958,1839.8,1839.7,2.72797]
[1746324154963,3.688,1839.8,1839.7,2.72797]
[1746324156257,1.6935,1840.0,1839.9,1.08685]
[1746324156564,1.6935,1840.0,1839.8,2.70205]
[1746324156765,1.6935,1840.0,1839.9,1.08685]
[1746324156962,1.6935,1840.0,1839.8,2.70208]
[1746324157264,5.3815,1840.0,1839.9,1.08685]
[1746324157766,8.5893,1840.0,1839.9,1.08685]
[1746324157966,8.5893,1840.0,1839.8,2.70205]
[1746324158157,1.693,1839.9,1839.8,2.70205]
[1746324159158,5.381,1839.9,1839.8,2.70205]
[1746324161662,3.688,1839.9,1839.8,2.70205]
[1746324165468,3.688,1839.9,1839.8,5.90985]
[1746324165668,3.688,1839.9,1839.8,2.70205]
[1746324172172,1.08697,1839.7,1839.6,1.6415]
[1746324172475,4.43615,1839.8,1839.6,3.612]
[1746324172675,4.43615,1839.8,1839.6,4.69902]
[1746324172876,1.6078,1839.7,1839.6,4.69902]
[1746324173073,1.6691,1839.8,1839.7,1.08697]
[1746324173267,3.688,1839.8,1839.7,1.08697]
[1746324173471,3.688,1839.8,1839.7,3.53427]
[1746324177281,3.688,1839.8,1839.7,2.68567]
[1746324179083,4.8959,1840.1,1840.0,1.08679]
[1746324179084,5.7217,1840.1,1840.0,1.08679]
[1746324179274,0.8453,1840.2,1840.0,3.608]
[1746324179478,6.5893,1840.5,1840.4,1.08655]
[1746324179874,6.5893,1840.5,1840.3,4.69457]
[1746324180076,8.5892,1840.5,1840.4,1.08655]
[1746324180283,8.5892,1840.5,1840.3,4.69457]
[1746324180482,1.6881,1840.4,1840.3,4.69457]
[1746324180781,1.6881,1840.4,1840.3,3.608]
[1746324180983,1.6881,1840.4,1840.3,4.69461]
[1746324181183,5.3761,1840.4,1840.3,4.69461]
[1746324181578,5.3761,1840.4,1840.3,6.42701]
[1746324183782,5.3761,1840.4,1840.2,3.608]
[1746324183980,1.6207,1840.3,1840.2,4.69465]
[1746324184175,3.688,1840.3,1840.2,4.69465]
[1746324189181,1.6934,1840.5,1840.4,1.08655]
[1746324189582,0.8258,1840.5,1840.4,1.08655]
[1746324189889,0.8258,1840.5,1840.4,3.62205]
[1746324190084,1.5979,1840.6,1840.5,1.08649]
[1746324190282,1.5979,1840.6,1840.5,6.39009]
[1746324191087,5.2859,1840.6,1840.5,6.39009]
[1746324192590,5.2859,1840.6,1840.5,4.69449]
[1746324193090,5.2859,1840.6,1840.5,3.608]
[1746324193790,5.2859,1840.6,1840.5,4.69449]
[1746324194591,3.688,1840.6,1840.5,4.69449]
[1746324195191,3.688,1840.6,1840.5,7.12249]
[1746324197285,1.7237,1841.0,1840.9,1.08626]
[1746324197589,1.7237,1841.0,1840.9,4.69326]
[1746324197987,4.0007,1841.1,1841.0,1.0862]
[1746324198289,7.6887,1841.1,1841.0,2.6715]
[1746324198591,6.8958,1841.1,1841.0,2.6715]
[1746324198978,8.4815,1841.1,1841.0,2.6715]
[1746324200089,5.2737,1841.1,1841.0,2.6715]
[1746324200982,5.2737,1841.1,1841.0,1.5853]
[1746324201183,9.56767,1841.1,1840.9,4.69322]
[1746324201386,2.8095,1841.0,1840.9,3.607]
[1746324201589,2.8095,1841.0,1840.9,4.69326]
[1746324201590,1.7233,1841.0,1840.9,4.69326]
[1746324202087,5.4113,1841.0,1840.9,4.69326]
[1746324205083,5.4113,1841.0,1840.9,3.607]
[1746324205084,6.4975,1841.0,1840.9,3.607]
[1746324206089,10.4113,1841.0,1840.7,1.08635]
[1746324206393,3.2078,1840.8,1840.6,3.607]
[1746324206596,3.2078,1840.8,1840.7,1.08638]
[1746324207093,6.8958,1840.8,1840.7,1.08638]
[1746324208491,6.8958,1840.8,1840.7,2.79228]
[1746324208888,7.98212,1840.8,1840.7,1.08638]
[1746324209083,6.8958,1840.8,1840.7,1.08638]
[1746324209294,7.98212,1840.8,1840.7,1.08638]
[1746324209688,6.8958,1840.8,1840.7,1.08638]
[1746324210388,7.98212,1840.8,1840.7,1.08638]
[1746324210588,1.08638,1840.7,1840.6,3.607]
[1746324210792,7.98712043,1840.8,1840.6,4.69043]
[1746324210985,6.90076043,1840.8,1840.7,1.08638]
[1746324211792,6.90076043,1840.8,1840.7,2.67538]
[1746324213399,6.90076043,1840.8,1840.7,3.50158]
[1746324215904,3.69296043,1840.8,1840.7,3.50158]
[1746324218003,3.69296043,1840.8,1840.7,2.67538]
[1746324222507,4.51536043,1840.8,1840.7,4.69038]
[1746324224612,6.24426043,1840.8,1840.7,4.69038]
[1746324227607,6.24426043,1840.8,1840.7,1.08638]
[1746324227812,6.24426043,1840.8,1840.7,4.69038]
[1746324228422,3.69296043,1840.8,1840.7,4.69038]
[1746324228621,2.56624043,1840.8,1840.7,6.34658]
[1746324228822,1.15488043,1840.8,1840.7,6.34658]
[1746324229119,0.00496043,1840.8,1840.7,7.95858]
[1746324229316,0.00496043,1840.8,1840.7,12.95858]
[1746324229622,0.69201767,1841.0,1840.9,1.08626]
[1746324229813,7.67e-06,1841.0,1840.9,7.89806]
[1746324230120,7.67e-06,1841.0,1840.9,12.89806]
[1746324231720,6.00347531,1841.3,1841.2,1.08608]
[1746324232020,6.00347531,1841.3,1841.2,7.89788]
[1746324233319,6.00347531,1841.3,1841.2,10.77395]
[1746324233320,2.95707531,1841.3,1841.2,10.77395]
[1746324233519,0.27518531,1841.3,1841.2,10.77395]
[1746324233723,0.27518531,1841.3,1841.2,11.19050121]
[1746324234024,3.2078,1841.8,1841.7,1.08579]
[1746324234214,3.2078,1841.8,1841.7,4.68979]
[1746324235014,4.9422,1841.8,1841.7,4.68979]
[1746324235213,8.6302,1841.8,1841.7,4.68979]
[1746324235421,13.6302,1841.8,1841.7,3.604]
[1746324235616,13.6302,1841.8,1841.7,4.68979]
[1746324236118,6.8958,1841.8,1841.7,4.68979]
[1746324236316,13.6302,1841.8,1841.7,4.68979]
[1746324236623,8.6302,1841.8,1841.7,4.68979]
[1746324236924,6.8958,1841.8,1841.7,4.68979]
[1746324237120,1.6817,1841.9,1841.8,1.08573]
[1746324238222,6.9747,1841.9,1841.8,1.08573]
[1746324239322,13.06039,1841.9,1841.5,0.7897]
[1746324239525,4.8128,1841.8,1841.7,1.08579]
[1746324240025,9.8128,1841.8,1841.6,3.601]
[1746324240220,9.8128,1841.8,1840.8,14.33084405]
[1746324240221,4.4359,1841.7,1841.0,65.8671444]
[1746324240419,6.01505,1841.6,1841.1,6.31636]
[1746324240619,1.7214,1841.5,1841.4,1.08596]
[1746324241217,3.688,1841.5,1841.4,4.68696]
[1746324241425,3.688,1841.5,1841.4,7.89476]
[1746324241426,2.48195,1841.5,1841.4,7.89476]
[1746324242221,6.6109,1841.9,1841.8,1.08573]
[1746324243126,10.2989,1841.9,1841.8,1.08573]
[1746324243526,7.0911,1841.9,1841.8,1.08573]
[1746324243828,10.2989,1841.9,1841.8,1.08573]
[1746324245023,11.38457,1841.9,1841.7,3.601]
[1746324245330,1.7319,1841.8,1841.7,4.68679]
[1746324245825,4.5004,1841.9,1841.8,1.08573]
[1746324246030,4.5004,1841.9,1841.8,2.81613]
[1746324246725,6.2332,1841.9,1841.8,2.81613]
[1746324248035,3.688,1841.9,1841.8,2.81613]
[1746324248334,3.688,1841.9,1841.8,3.62293]
[1746324249029,3.688,1841.9,1841.8,4.46453]
[1746324250232,2.39001,1841.9,1841.8,4.46453]
[1746324250430,3.2078,1842.9,1842.4,1.08537]
[1746324250637,3.2078,1842.9,1842.7,1.0852]
[1746324250931,3.2078,1842.9,1842.5,6.1786]
[1746324251132,5.6605,1842.7,1842.5,6.1786]
[1746324251330,12.67058222,1842.8,1842.7,1.0852]
[1746324252029,11.33605222,1842.8,1842.7,11.0107]
[1746324252229,8.54014222,1842.8,1842.7,11.0107]
[1746324252528,10.84770963,1843.1,1843.0,1.08502]
[1746324252729,10.84770963,1843.1,1843.0,7.89282]
[1746324252928,10.84770963,1843.1,1843.0,12.89282]
[1746324253229,12.65566124,1843.5,1843.4,1.08478]
[1746324253531,12.65566124,1843.5,1843.4,7.89258]
[1746324253829,12.65566124,1843.5,1843.4,3.599]
[1746324254034,14.25206124,1843.5,1843.4,3.599]
[1746324254233,16.34366124,1843.5,1843.4,4.68378]
[1746324254432,16.34366124,1843.5,1843.4,7.89158]
[1746324255429,17.42839124,1843.5,1843.2,58.5888]
[1746324255631,1.08484,1843.3,1843.2,3.599]
[1746324256237,10.2778,1843.3,1843.2,3.599]
[1746324256429,10.2778,1843.3,1843.2,4.6839]
[1746324256635,5.2778,1843.3,1843.2,4.6839]
[1746324256832,3.688,1843.3,1843.2,4.6839]
[1746324257330,3.688,1843.3,1843.2,11.4126]
[1746324257936,14.44615808,1843.6,1843.5,1.08473]
[1746324258235,15.41457808,1843.6,1843.5,7.89153]
[1746324258437,13.08883808,1843.6,1843.5,12.89153]
[1746324258632,3.688,1843.6,1843.5,16.57535762]
[1746324258840,3.2078,1844.5,1843.7,2.71151]
[1746324259027,4.9049,1844.3,1843.8,6.8068]
[1746324259228,5.34375,1843.9,1843.7,3.599]
[1746324259537,2.13595,1843.6,1843.4,3.599]
[1746324259739,4.68765,1843.5,1843.4,3.599]
[1746324259940,5.48705,1843.5,1843.4,3.599]
[1746324260132,7.52105,1843.5,1843.4,4.68378]
[1746324260333,5.3851,1843.5,1843.4,4.68378]
[1746324260637,3.688,1843.5,1843.4,7.89158]
[1746324261035,5.82395,1843.5,1843.4,7.89158]
[1746324261932,3.688,1843.5,1843.4,7.89158]
[1746324262332,2.16587,1843.5,1843.4,7.89158]
[1746324262638,3.2078,1843.9,1843.8,1.08455]
[1746324262939,4.7958,1843.9,1843.8,4.88455]
[1746324263137,10.61975,1843.9,1843.8,4.88455]
[1746324263333,3.688,1843.9,1843.8,8.09235]
[1746324264038,6.90844,1843.9,1843.8,3.2078]
[1746324264235,6.90844,1843.9,1843.6,4.88465]
[1746324264236,10.11627,1843.9,1843.6,4.88465]
[1746324264537,5.34375,1843.7,1843.5,3.8]
[1746324264747,2.13595,1843.6,1843.5,3.8]
[1746324265038,2.13595,1843.6,1843.5,4.88473]
[1746324265239,5.82395,1843.6,1843.5,4.88473]
[1746324265442,10.73035,1843.6,1843.5,4.88473]
[1746324265734,3.81588622,1843.6,1843.5,4.88473]
[1746324266031,3.81588622,1843.6,1843.5,3.8]
[1746324266232,7.50388622,1843.6,1843.5,3.8]
[1746324266437,7.50388622,1843.6,1843.5,4.88473]
[1746324266734,6.8958,1843.6,1843.5,4.88473]
[1746324267039,1.08434,1844.2,1843.6,2.71166]
[1746324267332,4.8447,1844.5,1843.8,2.71138]
[1746324267630,4.8447,1844.5,1844.3,1.08423]
[1746324268336,8.5327,1844.5,1844.3,1.08423]
[1746324268531,8.5327,1844.5,1844.3,1.08421]
[1746324268737,1.5962,1844.4,1844.3,1.08421]
[1746324269134,5.2842,1844.4,1844.3,1.08421]
[1746324269530,5.2842,1844.4,1844.2,3.8]
[1746324269743,4.804,1844.3,1844.2,3.8]
[1746324270039,4.804,1844.3,1844.2,4.88429]
[1746324270237,8.492,1844.3,1844.2,4.88429]
[1746324270640,8.492,1844.3,1844.2,3.8]
[1746324270940,14.57625,1844.3,1844.1,1.08436]
[1746324271141,8.492,1844.3,1844.2,1.08431]
[1746324272335,5.2842,1844.3,1844.2,1.08431]
[1746324272532,2.38715,1844.3,1844.2,9.88331]
[1746324272838,1.28265,1844.3,1844.2,13.09111]
[1746324273338,1.28265,1844.3,1843.8,2.71132]
[1746324273339,4.49045,1844.3,1843.8,3.2078]
[1746324273537,4.29228,1844.0,1843.9,3.799]
[1746324273731,4.29228,1844.0,1843.5,3.799]
[1746324273936,4.29242,1843.7,1843.5,3.799]
[1746324274136,1.6695,1843.6,1843.5,4.88373]
[1746324274440,3.688,1843.7,1843.6,1.08467]
[1746324274638,3.688,1843.7,1843.6,2.71437]
[1746324275036,3.688,1843.7,1843.6,7.71437]
[1746324275239,3.688,1843.7,1843.6,8.58277]
[1746324275736,2.41893,1843.7,1843.6,6.45884]
[1746324275937,2.41893,1843.7,1843.6,11.45884]
[1746324276332,2.41893,1843.7,1843.3,3.799]
[1746324276536,2.5077,1843.6,1843.3,3.799]
[1746324276743,3.2078,1843.5,1843.3,3.799]
[1746324276936,1.6612,1843.4,1843.3,3.799]
[1746324277136,5.3492,1843.4,1843.3,3.799]
[1746324277442,5.3492,1843.4,1843.3,4.88384]
[1746324277835,2.14389257,1843.4,1843.3,4.88384]
[1746324278539,2.14389257,1843.4,1843.3,8.09164]
[1746324278729,2.14389257,1843.4,1843.3,4.88384]
[1746324278937,0.96544257,1843.4,1843.3,13.09164]
[1746324279137,2.57e-06,1843.4,1843.3,15.96771]
[1746324279539,2.57e-06,1843.4,1843.3,16.70341]
[1746324280441,1.08414,1844.5,1843.6,2.7116]
[1746324280743,0.8567,1844.2,1844.1,1.08434]
[1746324281046,0.8567,1844.2,1844.1,4.88334]
[1746324281245,4.5447,1844.2,1844.1,4.88334]
[1746324282445,11.1504,1844.2,1844.1,3.799]
[1746324282650,6.1504,1844.2,1844.1,4.88337]
[1746324283645,6.1504,1844.2,1844.1,3.799]
[1746324283942,11.1504,1844.2,1843.8,4.8001]
[1746324284141,3.2078,1843.9,1843.5,6.67507]
[1746324284447,2.401,1843.8,1843.6,1.5923]
[1746324284644,2.401,1843.8,1843.7,1.08461]
[1746324285145,6.089,1843.8,1843.7,1.08461]
[1746324286341,6.089,1843.8,1843.5,3.799]
[1746324286548,1.61,1843.7,1843.6,1.08463]
[1746324286742,1.61,1843.7,1843.6,2.72253]
[1746324287147,5.298,1843.7,1843.6,2.72253]
[1746324287350,5.298,1843.7,1843.6,1.08463]
[1746324288050,3.688,1843.7,1843.6,2.72253]
[1746324289048,3.688,1843.7,1843.6,5.93033]
[1746324293051,3.688,1843.7,1843.6,1.08463]
[1746324293748,4.4881,1843.7,1843.6,1.08463]
[1746324294146,4.4881,1843.7,1843.6,2.77133]
[1746324294652,3.688,1843.7,1843.6,2.77133]